fUST/lending_fUST_20240401
["ID","MTS","AMOUNT","RATE_DAILY","PERIOD"]
[321184864,1711953040928,-387.78193799,0.00074998,7]
[321184865,1711953040937,-942.39072501,0.00074998,7]
[321184866,1711953040946,-277.0,0.00074998,120]
[321184867,1711953040955,-12083.37863867,0.00074999,61]
[321184972,1711953046408,-412.32007125,0.00056473,120]
[321184974,1711953046419,-463.43528092,0.00056473,120]
[321184976,1711953046428,-153.0,0.00073041,60]
[321184978,1711953046437,-153.0,0.0007337,60]
[321184980,1711953046446,-202.3118837,0.0007337,60]
[321184981,1711953046455,-153.0,0.00074192,60]
[321184982,1711953046465,-5284.74,0.00074998,30]
[321184983,1711953046474,-5284.74,0.00074998,30]
[321184984,1711953046483,-5284.74,0.00074998,30]
[321184985,1711953046493,-5284.74,0.00074998,30]
[321184986,1711953046503,-16629.03184874,0.00074999,61]
[321184987,1711953046513,-155.92686257,0.00074999,7]
[321184988,1711953046523,-258.3739879,0.00074999,7]
[321184989,1711953046533,-1862.19844961,0.00074999,7]
[321184990,1711953046543,-5120.39869947,0.00074999,7]
[321184991,1711953046552,-495.61312408,0.00074999,7]
[321184992,1711953046561,-3533.72308768,0.00074999,7]
[321184993,1711953046571,-214.74359377,0.00074999,7]
[321184994,1711953046581,-155.50705614,0.00074999,2]
[321184995,1711953046590,-188.11014545,0.00074999,7]
[321184996,1711953046601,-156.2152794,0.00074999,7]
[321184998,1711953046610,-243.66537102,0.00074999,7]
[321185000,1711953046619,-156.76164364,0.00074999,7]
[321185002,1711953046627,-586.84740499,0.00074999,7]
[321185004,1711953046636,-408.09958221,0.00074999,7]
[321185006,1711953046645,-201.49384818,0.00074999,7]
[321185008,1711953046654,-477.07241012,0.00074999,30]
[321185010,1711953046663,-50928.37298699,0.00074999,30]
[321185028,1711953046837,-62.32812169,0.00074999,30]
[321185241,1711953048878,385.54500067,0.0005,4]
[321186086,1711953100249,2477.28509466,0.00049998,4]
[321186087,1711953124080,213.82439407,0.000499,2]
[321186088,1711953143701,156.08773108,0.00019,2]
[321186089,1711953148590,163.040645,0.00033,4]
[321186090,1711953150499,-5722.80915238,0.00049999,4]
[321186091,1711953150541,-532.0,0.00049999,10]
[321186092,1711953150581,-19237.81297721,0.0005,4]
[321186093,1711953150643,-726.45295205,0.0005,4]
[321186094,1711953150698,-460.0964623,0.0005,4]
[321186095,1711953150748,-416.40512428,0.0005,2]
[321186096,1711953150786,-481.66170174,0.0005,2]
[321186097,1711953150895,154.84515485,0.0005,4]
[321186098,1711953162688,249.09337683,0.00033,2]
[321186099,1711953168826,154.84515485,0.00033,4]
[321186100,1711953172159,421.45398903,0.00033,2]
[321186101,1711953186819,203.96455646,0.00033,4]
[321186102,1711953188168,352.41947152,0.00033,2]
[321186107,1711953358104,172.015266,0.0004,2]
[321186108,1711953442636,150.96371262,0.00042149,30]
[321186109,1711953606939,1101.27600694,0.00049311,15]
[321186147,1711953959558,165.770542,0.0004,2]
[321186153,1711954030154,-495.61312408,0.00051777,15]
[321186161,1711954126577,14563.33424049,0.00043,118]
[321186162,1711954126602,65436.66575951,0.00043,118]
[321186163,1711954145166,-148.45067627,0.00051777,15]
[321186164,1711954145189,-169.684642,0.00051902,2]
[321186165,1711954145210,-400.0,0.0005205,10]
[321186166,1711954145233,-7522.31529463,0.0005205,120]
[321186266,1711954232585,-2550.76865889,0.0004721,4]
[321186892,1711954238961,-3172.04049349,0.0004721,4]
[321186894,1711954238970,-1293.6333589,0.00047211,2]
[321186896,1711954238980,-1013.30889899,0.00052052,4]
[321186898,1711954238991,-1543.5081039,0.00052071,2]
[321186899,1711954239000,-1293.6333589,0.00052211,2]
[321186901,1711954239009,-457.7803786,0.00052256,2]
[321186903,1711954239019,-250.0,0.00052639,2]
[321186905,1711954239028,-445.10116552,0.00052751,120]
[321186907,1711954239037,-362.71650062,0.00052751,120]
[321186909,1711954239046,-4388.68729702,0.00052751,120]
[321186911,1711954239056,-13565.89044407,0.00052752,2]
[321186949,1711954244704,-1.11029533,0.00052752,2]
[321186978,1711954247878,-617.12259317,0.00052752,2]
[321186989,1711954338797,-484.60645388,0.00052751,120]
[321186990,1711954338823,-500.0,0.00052751,120]
[321186991,1711954338844,-155.47297975,0.00052751,120]
[321186992,1711954338872,-454.26599207,0.00052751,120]
[321186993,1711954338894,-171.30913614,0.00052751,120]
[321186994,1711954342514,3361.32360003,0.00052745,120]
[321186998,1711954381635,-150.96371262,0.00050388,60]
[321186999,1711954393470,-700.0,0.00052751,60]
[321187000,1711954404438,-550.0,0.00052751,10]
[321187001,1711954412991,3505.0,0.00052623,120]
[321187002,1711954415867,-205.400814,0.00053267,120]
[321187004,1711954443956,366.0,0.00052751,60]
[321187007,1711954456619,205.83558861,0.0005,20]
[321187009,1711954471487,11018.61198166,0.0005,30]
[321187010,1711954473309,1315.29852753,0.00052,30]
[321187013,1711954477217,172.0152664,0.0004,2]
[321187016,1711954478610,3934.66920519,0.0004,30]
[321187017,1711954478647,7046.79955971,0.0004075,2]
[321187019,1711954494530,-719.98342272,0.00041089,4]
[321187020,1711954494554,-1599.76,0.0004109,4]
[321187021,1711954494576,-803.71555084,0.00041091,4]
[321187022,1711954494598,-801.29222065,0.00041091,4]
[321187023,1711954494620,-240.19397274,0.00041094,4]
[321187025,1711954550234,-481.21111963,0.00050652,4]
[321187026,1711954568717,1599.76,0.00051999,4]
[321187031,1711954646357,-157.14285715,0.00043858,30]
[321187034,1711954946067,153.24809298,0.00043439,30]
[321187039,1711955248200,-156.33586925,0.00043439,4]
[321187040,1711955248220,-1164.5282961,0.00049794,4]
[321187696,1711955442143,-719.98342272,0.00048551,4]
[321187697,1711955442153,-320.80741309,0.00048552,2]
[321187698,1711955442163,-3103.15022881,0.00049799,2]
[321187699,1711955442172,-163.8223006,0.00049897,2]
[321187700,1711955442182,-1658.31310939,0.000499,2]
[321187701,1711955442191,-1004.26425693,0.0005,2]
[321187868,1711955444710,-781.06492134,0.0005,2]
[321187870,1711955444720,-1125.27524567,0.00051445,2]
[321188188,1711955447726,-207.18828823,0.00051445,2]
[321188190,1711955447735,-250.0,0.00051491,2]
[321188192,1711955447744,-824.3550232,0.00051821,2]
[321188194,1711955447753,-578.87519299,0.000519,2]
[321188196,1711955447762,-164.49122104,0.000519,14]
[321188198,1711955447774,-185.0,0.00051931,2]
[321188200,1711955447783,-24900.0,0.00051931,2]
[321188202,1711955447793,-287.70391549,0.00051999,120]
[321188204,1711955447802,-3328.3921951,0.00052,30]
[321188206,1711955447811,-187.440107,0.000521,2]
[321188208,1711955447821,-166.666666,0.00052111,2]
[321188209,1711955447830,-205.400814,0.00052146,120]
[321188211,1711955447839,-739.5569405,0.00052241,15]
[321188213,1711955447849,-578.87519297,0.00052599,2]
[321188216,1711955447859,-1823.86943037,0.00052748,4]
[321188217,1711955447868,-578.87519297,0.00053297,2]
[321188219,1711955447877,-166.666666,0.00053532,2]
[321188221,1711955447887,-320.80741309,0.00053552,2]
[321188222,1711955447896,-578.87519297,0.00053996,2]
[321188223,1711955447904,-3144.0351984,0.00054,2]
[321188224,1711955447914,-578.87519297,0.00054694,2]
[321188225,1711955447923,-1215.86353765,0.00054767,58]
[321188226,1711955447932,-4148.23674105,0.00054792,4]
[321188227,1711955447941,-179.0566593,0.00054792,4]
[321188229,1711955447950,-545.05745774,0.00054792,4]
[321188231,1711955447960,-501.6579087,0.00054792,4]
[321188232,1711955447969,-360.83108321,0.00054792,4]
[321188233,1711955447977,-1733.86862185,0.00054792,4]
[321188234,1711955447987,-657.05304809,0.00054792,4]
[321188235,1711955447996,-605.82865444,0.00054792,4]
[321188236,1711955448005,-1435.1217039,0.00054792,4]
[321188237,1711955448014,-4055.67909224,0.00054793,4]
[321188238,1711955448026,-242.71787132,0.00054793,4]
[321188240,1711955448036,-3170.85,0.00054793,7]
[321188242,1711955448044,-3170.85,0.00054793,7]
[321188244,1711955448053,-3170.85,0.00054793,7]
[321188245,1711955448062,-14356.2052437,0.00054794,61]
[321188247,1711955448072,-500.0,0.00054794,120]
[321188249,1711955448080,-1000.0,0.00054794,120]
[321188251,1711955448089,-500.0,0.00054794,120]
[321188253,1711955448098,-501.78995136,0.00054794,120]
[321188255,1711955448111,-500.0,0.00054794,120]
[321188257,1711955448120,-550.7395877,0.00054794,120]
[321188259,1711955448134,-517.68275741,0.00054794,120]
[321188260,1711955448143,-500.0,0.00054794,120]
[321188261,1711955448152,-505.90044873,0.00054794,120]
[321188262,1711955448162,-500.0,0.00054794,120]
[321188263,1711955448251,-500.0,0.00054794,120]
[321188264,1711955448262,-500.0,0.00054794,120]
[321188265,1711955448272,-500.0,0.00054794,120]
[321188266,1711955448282,-500.81254018,0.00054794,120]
[321188267,1711955448292,-500.0,0.00054794,120]
[321188268,1711955448302,-500.0,0.00054794,120]
[321188269,1711955448311,-500.0,0.00054794,120]
[321188270,1711955448320,-501.6655838,0.00054794,120]
[321188271,1711955448330,-501.83489661,0.00054794,120]
[321188272,1711955448339,-500.0,0.00054794,120]
[321188273,1711955448348,-500.0,0.00054794,120]
[321188274,1711955448358,-500.0,0.00054794,120]
[321188275,1711955448367,-500.0,0.00054794,120]
[321188276,1711955448376,-500.0,0.00054794,120]
[321188277,1711955448385,-503.62604418,0.00054794,120]
[321188278,1711955448394,-500.0,0.00054794,120]
[321188279,1711955448403,-503.32976601,0.00054794,120]
[321188280,1711955448413,-500.0,0.00054794,120]
[321188281,1711955448422,-244.48661389,0.00054794,120]
[321188282,1711955448432,-600.0,0.00054794,120]
[321188283,1711955448443,-504.44487624,0.00054794,120]
[321188284,1711955448453,-338.72554687,0.00054794,120]
[321188285,1711955448462,-506.64055552,0.00054794,120]
[321188286,1711955448471,-500.0,0.00054794,120]
[321188287,1711955448483,-500.0,0.00054794,120]
[321188288,1711955448493,-500.0,0.00054794,120]
[321188289,1711955448502,-505.78537869,0.00054794,120]
[321188290,1711955448511,-500.0,0.00054794,120]
[321188291,1711955448522,-500.0,0.00054794,120]
[321188292,1711955448531,-500.0,0.00054794,120]
[321188293,1711955448539,-500.0,0.00054794,120]
[321188294,1711955448548,-502.6689272,0.00054794,120]
[321188295,1711955448557,-500.0,0.00054794,120]
[321188296,1711955448566,-531.66,0.00054794,120]
[321188297,1711955448576,-505.62552479,0.00054794,120]
[321188299,1711955448585,-500.0,0.00054794,120]
[321188300,1711955448594,-500.0,0.00054794,120]
[321188302,1711955448603,-501.68842196,0.00054794,120]
[321188303,1711955448612,-218.02670376,0.00054794,120]
[321188304,1711955448621,-507.78356596,0.00054794,120]
[321188305,1711955448630,-504.22989997,0.00054794,120]
[321188306,1711955448639,-500.0,0.00054794,7]
[321188307,1711955448648,-500.0,0.00054794,120]
[321188308,1711955448657,-501.48777881,0.00054794,120]
[321188309,1711955448666,-577.69947647,0.00054794,120]
[321188310,1711955448674,-501.53007054,0.00054794,120]
[321188311,1711955448684,-500.0,0.00054794,120]
[321188312,1711955448693,-500.0,0.00054794,120]
[321188313,1711955448701,-501.49515567,0.00054794,120]
[321188314,1711955448712,-502.41504639,0.00054794,120]
[321188315,1711955448721,-502.65555419,0.00054794,120]
[321188316,1711955448730,-506.65239694,0.00054794,120]
[321188317,1711955448739,-502.59505105,0.00054794,120]
[321188318,1711955448748,-505.88923611,0.00054794,120]
[321188319,1711955448757,-501.14398219,0.00054794,120]
[321188320,1711955448766,-353.77623847,0.00054794,120]
[321188321,1711955448776,-500.0,0.00054794,120]
[321188322,1711955448785,-503.79279527,0.00054794,120]
[321188323,1711955448793,-500.0,0.00054794,120]
[321188324,1711955448802,-500.0,0.00054794,120]
[321188325,1711955448811,-505.86791995,0.00054794,120]
[321188326,1711955448820,-501.18361055,0.00054794,120]
[321188327,1711955448830,-506.61242149,0.00054794,120]
[321188328,1711955448839,-500.0,0.00054794,120]
[321188329,1711955448848,-500.0,0.00054794,120]
[321188330,1711955448856,-503.62660299,0.00054794,120]
[321188331,1711955448865,-500.0,0.00054794,120]
[321188332,1711955448874,-511.13,0.00054794,120]
[321188333,1711955448883,-500.0,0.00054794,120]
[321188334,1711955448892,-500.0,0.00054794,120]
[321188335,1711955448900,-500.0,0.00054794,120]
[321188336,1711955448909,-506.23687005,0.00054794,120]
[321188337,1711955448918,-502.6651959,0.00054794,120]
[321188338,1711955448928,-504.24879314,0.00054794,120]
[321188339,1711955448937,-501.43245657,0.00054794,120]
[321188340,1711955448946,-500.0,0.00054794,120]
[321188341,1711955448956,-500.0,0.00054794,120]
[321188342,1711955448965,-502.0747183,0.00054794,120]
[321188343,1711955448974,-500.0,0.00054794,120]
[321188344,1711955448983,-504.53137191,0.00054794,120]
[321188345,1711955448992,-433.92616476,0.00054794,120]
[321188346,1711955449001,-502.53270551,0.00054794,120]
[321188347,1711955449010,-500.0,0.00054794,120]
[321188348,1711955449019,-500.0,0.00054794,120]
[321188349,1711955449029,-500.0,0.00054794,120]
[321188350,1711955449038,-225.58596751,0.00054794,120]
[321188351,1711955449046,-505.17591635,0.00054794,120]
[321188352,1711955449055,-500.0,0.00054794,120]
[321188353,1711955449064,-503.58552409,0.00054794,120]
[321188354,1711955449074,-494.77180369,0.00054794,120]
[321188355,1711955449083,-505.09985847,0.00054794,120]
[321188356,1711955449092,-151.0,0.00054794,120]
[321188357,1711955449101,-1027.72,0.00054794,120]
[321188358,1711955449110,-500.0,0.00054794,120]
[321188359,1711955449119,-500.0,0.00054794,120]
[321188360,1711955449128,-500.0,0.00054794,120]
[321188361,1711955449137,-507.30136522,0.00054794,120]
[321188362,1711955449146,-500.0,0.00054794,120]
[321188363,1711955449154,-501.7330189,0.00054794,120]
[321188364,1711955449163,-500.0,0.00054794,120]
[321188365,1711955449172,-500.0,0.00054794,120]
[321188366,1711955449181,-644.02835338,0.00054794,120]
[321188367,1711955449190,-501.80867233,0.00054794,20]
[321188368,1711955449199,-507.30671047,0.00054794,120]
[321188369,1711955449207,-500.0,0.00054794,120]
[321188370,1711955449216,-500.0,0.00054794,120]
[321188371,1711955449226,-500.0,0.00054794,120]
[321188372,1711955449235,-223.72004347,0.00054794,120]
[321188373,1711955449245,-500.0,0.00054794,120]
[321188374,1711955449256,-505.22816924,0.00054794,120]
[321188375,1711955449265,-502.47091298,0.00054794,120]
[321188376,1711955449275,-302.30617269,0.00054794,120]
[321188377,1711955449283,-505.42928016,0.00054794,120]
[321188378,1711955449293,-500.0,0.00054794,120]
[321188379,1711955449302,-500.0,0.00054794,120]
[321188380,1711955449311,-500.0,0.00054794,120]
[321188381,1711955449320,-502.75048976,0.00054794,120]
[321188382,1711955449329,-500.0,0.00054794,120]
[321188383,1711955449338,-500.0,0.00054794,120]
[321188384,1711955449347,-500.0,0.00054794,120]
[321188385,1711955449356,-416.50028749,0.00054794,120]
[321188386,1711955449364,-500.0,0.00054794,120]
[321188387,1711955449374,-505.17576895,0.00054794,120]
[321188388,1711955449382,-504.2430976,0.00054794,120]
[321188389,1711955449391,-514.88122441,0.00054794,120]
[321188390,1711955449400,-500.60523331,0.00054794,120]
[321188391,1711955449409,-506.0,0.00054794,120]
[321188392,1711955449418,-502.55544166,0.00054794,120]
[321188393,1711955449428,-500.0,0.00054794,120]
[321188394,1711955449438,-501.80155228,0.00054794,120]
[321188395,1711955449450,-505.50469539,0.00054794,120]
[321188396,1711955449459,-500.0,0.00054794,120]
[321188397,1711955449468,-45.3847541,0.00054794,120]
[321188403,1711955996935,10000.0,0.00040751,2]
[321188404,1711956025316,2170.7,0.00040751,2]
[321188405,1711956097519,3392.30236941,0.00040751,4]
[321188406,1711956104452,5299.83634162,0.00040751,4]
[321188407,1711956108673,1076.16915408,0.00040751,4]
[321188408,1711956110903,231.4864258,0.00040751,2]
[321188409,1711956111810,30784.92210691,0.00035,2]
[321188410,1711956133779,-2410.61744276,0.00041328,2]
[321188411,1711956133811,-550.0,0.00041329,5]
[321188412,1711956133846,-198.91023531,0.0004133,4]
[321188413,1711956133877,-219.70827694,0.0004133,4]
[321188414,1711956133907,-158.02404524,0.0004133,4]
[321188415,1711956133936,-253.622138,0.0004133,4]
[321188416,1711956133965,-258.3739879,0.0004133,4]
[321188417,1711956133993,-155.92686257,0.0004133,4]
[321188418,1711956134020,-214.74359377,0.0004133,4]
[321188419,1711956134049,-201.49384818,0.0004133,4]
[321188420,1711956134077,-156.2152794,0.0004133,4]
[321188421,1711956134106,-243.66537102,0.0004133,4]
[321188422,1711956134134,-5120.39869947,0.0004133,4]
[321188423,1711956134255,-155.50705614,0.0004133,2]
[321188424,1711956134285,-156.76164364,0.0004133,4]
[321188425,1711956134314,-3533.72308768,0.0004133,4]
[321188426,1711956134342,-495.61312408,0.0004133,4]
[321188427,1711956134374,-188.11014545,0.0004133,4]
[321188428,1711956134402,-503.11601615,0.00041331,31]
[321188429,1711956134431,-379.82380626,0.00041331,31]
[321188430,1711956134459,-527.58705749,0.00041331,31]
[321188431,1711956134488,-2219.59,0.00041331,7]
[321188432,1711956134516,-100246.44199196,0.00041332,30]
[321188433,1711956153569,595.8321696,0.00040726,2]
[321188434,1711956160059,-4446.50285225,0.00041328,4]
[321188435,1711956160086,-624.49222766,0.00041329,4]
[321188436,1711956160111,-586.84740499,0.0004133,4]
[321188437,1711956160136,-2539.82658668,0.00041331,2]
[321188438,1711956160163,-139648.7686,0.00041332,30]
[321188439,1711956160188,-418.61164062,0.00041572,2]
[321188440,1711956160214,-169.477125,0.00041672,2]
[321188441,1711956160239,-166.666666,0.0004233,2]
[321188442,1711956160264,-166.666666,0.00043484,2]
[321188443,1711956160391,-250.0,0.00044023,5]
[321188444,1711956160419,-166.666666,0.00044638,2]
[321188445,1711956160444,-150.5,0.00044942,35]
[321188446,1711956160471,-4558.0,0.00044942,35]
[321188447,1711956160496,-150.5,0.00044952,35]
[321188448,1711956160521,-4558.0,0.00044952,35]
[321188449,1711956160547,-235.0,0.00044962,2]
[321188450,1711956160572,-150.5,0.00044962,35]
[321188451,1711956160598,-4558.0,0.00044962,35]
[321188452,1711956160625,-2219.59,0.00044971,7]
[321188453,1711956160652,-2219.59,0.00044971,7]
[321188454,1711956160681,-2219.59,0.00044971,7]
[321188455,1711956160707,-2219.59,0.00044971,7]
[321188456,1711956160733,-2219.59,0.00044971,7]
[321188457,1711956160759,-2219.59,0.00044971,7]
[321188458,1711956160784,-2219.59,0.00044971,7]
[321188459,1711956160808,-2219.59,0.00044971,7]
[321188460,1711956160837,-2219.59,0.00044971,7]
[321188461,1711956160864,-219.344139,0.00044972,7]
[321188462,1711956160890,-219.344139,0.00044972,7]
[321188463,1711956160917,-219.344139,0.00044972,7]
[321188464,1711956160942,-219.344139,0.00044972,7]
[321188465,1711956160968,-219.344139,0.00044972,7]
[321188466,1711956160994,-219.344139,0.00044972,7]
[321188467,1711956161019,-219.344139,0.00044972,7]
[321188468,1711956161045,-219.344139,0.00044972,7]
[321188469,1711956161071,-219.344139,0.00044972,7]
[321188470,1711956161097,-219.344139,0.00044972,7]
[321188471,1711956161123,-151.0,0.00044972,7]
[321188472,1711956161149,-151.0,0.00044972,7]
[321188473,1711956161175,-151.0,0.00044972,7]
[321188474,1711956161200,-164.773883,0.00044972,7]
[321188475,1711956161225,-751.084854,0.00044972,7]
[321188476,1711956161251,-751.084854,0.00044972,7]
[321188477,1711956161278,-751.084854,0.00044972,7]
[321188478,1711956161303,-751.084854,0.00044972,7]
[321188479,1711956161330,-751.084854,0.00044972,7]
[321188480,1711956161356,-751.084854,0.00044972,7]
[321188481,1711956161384,-751.084854,0.00044972,7]
[321188482,1711956161409,-751.084854,0.00044972,7]
[321188483,1711956161438,-751.084854,0.00044972,7]
[321188484,1711956161464,-751.084854,0.00044972,7]
[321188485,1711956161491,-178.460983,0.00044972,7]
[321188486,1711956161517,-178.460983,0.00044972,7]
[321188487,1711956161543,-178.460983,0.00044972,7]
[321188488,1711956161568,-178.460983,0.00044972,7]
[321188489,1711956161592,-178.460983,0.00044972,7]
[321188490,1711956161620,-178.460983,0.00044972,7]
[321188491,1711956161649,-178.460983,0.00044972,7]
[321188492,1711956161675,-178.460983,0.00044972,7]
[321188493,1711956161700,-178.460983,0.00044972,7]
[321188494,1711956161724,-178.460983,0.00044972,7]
[321188495,1711956161765,-151.0,0.00044972,7]
[321188496,1711956161792,-151.0,0.00044972,7]
[321188497,1711956161823,-151.0,0.00044972,7]
[321188498,1711956161850,-151.0,0.00044972,7]
[321188499,1711956161879,-262.083321,0.00044972,7]
[321188500,1711956161905,-151.0,0.00044972,7]
[321188501,1711956161932,-151.0,0.00044972,7]
[321188502,1711956161958,-151.0,0.00044972,7]
[321188503,1711956162101,-151.0,0.00044972,7]
[321188504,1711956162133,-151.0,0.00044972,7]
[321188505,1711956162159,-155.973338,0.00044972,7]
[321188506,1711956162185,-151.0,0.00044972,7]
[321188507,1711956162211,-151.0,0.00044972,7]
[321188508,1711956162236,-151.0,0.00044972,7]
[321188509,1711956162263,-151.0,0.00044972,7]
[321188510,1711956162288,-151.0,0.00044972,7]
[321188511,1711956162313,-151.0,0.00044972,7]
[321188513,1711956190146,762.48754108,0.00035,20]
[321188514,1711956199790,16784.61564053,0.00035,2]
[321188515,1711956260472,762.48754108,0.00035,20]
[321188516,1711956274479,762.48754108,0.00035,20]
[321188517,1711956287810,1347.05937006,0.00035,2]
[321188518,1711956298493,762.48754108,0.00035,20]
[321188519,1711956306545,160.838919,0.0004,2]
[321188521,1711956314482,762.48754108,0.00035,20]
[321188522,1711956334505,762.48754108,0.00035,20]
[321188523,1711956354492,608.17800987,0.00035,20]
[321188527,1711956426200,-651.06560891,0.00041782,2]
[321188528,1711956459142,1746.58762527,0.00035,4]
[321188529,1711956459884,505.37460992,0.00035,2]
[321188530,1711956514293,166.666666,0.00041096,2]
[321188536,1711956570118,-3395.35867629,0.00041588,4]
[321188537,1711956570139,-378.040668,0.00041589,120]
[321188538,1711956570160,-992.04710039,0.00041782,2]
[321188539,1711956570181,-181.4740109,0.00041789,2]
[321188540,1711956570203,-463.43528092,0.00041838,31]
[321188541,1711956570224,-412.32007125,0.00041838,31]
[321188542,1711956570245,-4601.07606816,0.00041839,2]
[321188553,1711956631884,-11073.02566453,0.00041838,4]
[321188554,1711956631893,-20298.92393184,0.00041839,2]
[321188555,1711956631903,-581.70246054,0.00042,2]
[321188556,1711956631913,-166.666666,0.00042104,2]
[321188557,1711956631922,-1092.97759675,0.00042738,2]
[321188558,1711956631931,-1092.97759673,0.00042738,2]
[321188559,1711956631940,-1092.97759673,0.00042739,2]
[321188560,1711956631949,-1092.97759673,0.00042739,2]
[321188561,1711956631958,-1092.97759673,0.00042739,2]
[321188562,1711956631968,-2113.9,0.00042763,7]
[321188563,1711956631978,-2113.9,0.00042763,7]
[321188564,1711956631988,-2113.9,0.00042763,7]
[321188565,1711956631998,-2113.9,0.00042763,7]
[321188566,1711956632008,-2113.9,0.00042763,7]
[321188567,1711956632017,-2113.9,0.00042763,7]
[321188568,1711956632026,-2113.9,0.00042763,7]
[321188569,1711956632035,-2113.9,0.00042763,7]
[321188570,1711956632044,-2113.9,0.00042763,7]
[321188571,1711956632053,-2113.9,0.00042763,7]
[321188572,1711956632062,-7084.76444643,0.00042764,60]
[321188573,1711956632074,-71928.17862208,0.00042764,60]
[321188574,1711956632083,-2338.02167201,0.00042764,30]
[321188575,1711956632092,-1839060.3805209,0.00042764,60]
[321188576,1711956632103,-13314.31183713,0.00042764,60]
[321188577,1711956632118,-14018.21185274,0.00042764,60]
[321188675,1711956637863,-490882.78016989,0.00042764,60]
[321188681,1711956637936,-4956.07254271,0.00042764,60]
[321188682,1711956637947,-500.0,0.00042764,60]
[321188683,1711956637959,-619.69894878,0.00042764,60]
[321188743,1711956643370,-5476.90538658,0.00041488,2]
[321188744,1711956643380,-4126.49326446,0.00042764,60]
[321188745,1711956643391,-1401.37286145,0.00042764,60]
[321188751,1711956644690,-1108409.69576451,0.00042764,60]
[321188752,1711956644704,-6024.50550238,0.00042764,60]
[321189029,1711956805497,167.197248,0.0004,2]
[321189031,1711956874407,615.6714188,0.00040664,2]
[321189032,1711956914594,1232.50748,0.00040675,2]
[321189033,1711956946151,283.530501,0.00040625,120]
[321189034,1711956964694,200.707112,0.0004111,2]
[321189035,1711956966130,-8858.42053162,0.00041427,4]
[321189036,1711956966153,-187.0,0.00041428,2]
[321189037,1711956966176,-24900.0,0.00041428,2]
[321189038,1711956966201,-175.660937,0.00041452,2]
[321189039,1711956979957,-533.382888,0.00041634,31]
[321189040,1711956983483,-153.4559021,0.00041564,2]
[321189041,1711956983505,-8858.42053162,0.00041634,4]
[321189042,1711956983527,-32696.41795905,0.00041635,2]
[321189043,1711957069999,3573.52202102,0.00035,2]
[321189044,1711957071122,166.666666,0.00041096,2]
[321189045,1711957090319,304.19442045,0.00041327,7]
[321189046,1711957119607,1599.76,0.00041325,4]
[321189047,1711957175495,664.86608804,0.00040664,2]
[321189048,1711957196120,1599.76,0.00041203,4]
[321189049,1711957265503,171.609529,0.00040829,2]
[321189050,1711957276875,1599.76,0.00041203,4]
[321189051,1711957355165,1599.76,0.00041203,4]
[321189052,1711957389496,24900.0,0.0004111,2]
[321189054,1711957418302,780.301114,0.00041067,2]
[321189055,1711957424191,510.9833183,0.00041067,2]
[321189056,1711957428794,1125.2752457,0.00041108,2]
[321189057,1711957439879,8086.385079,0.00041108,2]
[321189058,1711957477033,443.24405869,0.00040664,2]
[321189059,1711957490763,263.998079,0.00041075,120]
[321189060,1711957511923,10000.0,0.0004111,2]
[321189061,1711957517849,10000.0,0.0004111,2]
[321189062,1711957524538,10000.0,0.0004111,2]
[321189063,1711957530412,10000.0,0.0004111,2]
[321189064,1711957535075,27417.84704817,0.00039056,30]
[321189065,1711957535103,1877.60695183,0.00039056,30]
[321189066,1711957537491,10000.0,0.0004111,2]
[321189067,1711957544498,10000.0,0.0004111,2]
[321189068,1711957550969,10000.0,0.0004111,2]
[321189069,1711957556708,10000.0,0.0004111,2]
[321189070,1711957559099,166.666666,0.00041096,2]
[321189071,1711957562650,10000.0,0.0004111,2]
[321189072,1711957568069,10000.0,0.0004111,2]
[321189073,1711957580063,3276.12,0.0004111,2]